[Event "Chessable English Open-ch 2022"]
[Site "Kenilwoth"]
[Date "2022.05.20"]
[Round "3.8"]
[White "Hackner, Oskar A"]
[Black "Southcott-Moyers, Indy"]
[Result "1/2-1/2"]
[ECO "A20"]
[WhiteElo "2177"]
[BlackElo "2028"]
[Annotator "TA"]
[PlyCount "87"]
[EventDate "2022.05.18"]
[EventType "swiss"]
[EventCountry "ENG"]
[SourceTitle "playchess.com"]
[Source "ChessBase"]
[SourceQuality "1"]
[TimeControl "5400+30"]

{[%evp 9,87,0,0,0,0,0,0,-14,0,-23,-21,-19,-20,-74,-62,-105,-83,-97,-51,-55,-65,-64,-35,-45,-29,-52,-60,-59,-60,-65,-9,-20,21,16,62,0,51,52,43,83,62,32,12,0,130,86,126,113,98,56,62,45,154,64,87,85,105,45,119,40,41,30,122,117,167,41,54,41,45,24,22,0,0,0,0,0,0,0,0,0]} 1. c4 {[%emt 0:00:05]} e5 {[%emt 0:00:13]} 2. g3 {[%emt 0:00:09]} Nf6 {[%emt 0:00:55]} 3. Bg2 {[%emt 0:00:10]} c6 {[%emt 0:00:29]} 4. d4 {[%emt 0:00:23]} e4 {[%emt 0:01:24]} 5. Nc3 {[%emt 0:00:20]} Bb4 {[%emt 0:06:47]} 6. Bg5 {[%emt 0:06:32] A20: English Opening: 1...e5.} d5 {[%emt 0:05:49]} 7. cxd5 {[%emt 0:09:47]} cxd5 {[%emt 0:01:28]} 8. Nh3 {[%emt 0:00:55]} Nbd7 {[%emt 0:06:21]} 9. O-O {[%emt 0:01:38]} Bxc3 {[%emt 0:02:14]} 10. bxc3 {[%emt 0:00:05]} h6 {[%emt 0:05:26]} 11. Bc1 {[%emt 0:05:29]} (11. Bxf6 $11 Nxf6 12. f3) 11... O-O $17 {[%emt 0:00:46] [#]} 12. Nf4 $146 {[%emt 0:00:38]} ({Predecessor:} 12. f3 Nb6 13. Nf2 Re8 14. a4 Bf5 15. a5 Nc4 16. a6 b6 17. g4 Bh7 18. g5 hxg5 19. Bxg5 {0-1 (30) Mwali,C (2250)-Edouard,R (2680) Tromsoe 2014}) 12... Nb6 {[%emt 0:02:00]} (12... g5 $6 13. Nh3 $11) 13. f3 {[%emt 0:05:57]} Bf5 {[%emt 0:03:19]} (13... Re8 $17) 14. g4 $15 {[%emt 0:03:24]} Bh7 {[%emt 0:13:00]} 15. h4 {[%emt 0:03:30]} exf3 {[%emt 0:10:41]} 16. exf3 {[%emt 0:01:18][%cal Be2f3,Bf3f4,Bf4f5][%mdl 32]} Nfd7 {[%emt 0:06:20]} 17. g5 {[%emt 0:05:30]} hxg5 {[%emt 0:01:22]} 18. hxg5 {[%emt 0:00:05]} Re8 {[%emt 0:01:52]} ({Don't play} 18... Qxg5 19. Ne6 $1 Qf6 20. Nxf8 Nxf8 21. a4 $11) 19. Nh5 {[%emt 0:22:44]} Nf8 {[%emt 0:03:45]} ({Better is} 19... Qc7 $15 20. Bf4 Qxc3) 20. f4 $1 $11 {[%emt 0:07:02] Black must now prevent f5.} Bf5 {[%emt 0:02:12]} 21. Ng3 {[%emt 0:00:33]} Qd7 {[%emt 0:00:49]} (21... Be4 $11 {is superior.}) 22. Qf3 {[%emt 0:08:09]} (22. Nxf5 $14 Qxf5 23. a4) 22... Ng6 {[%emt 0:09:52]} (22... Bg4 $11 23. Qd3 Nc4) 23. Nxf5 $14 {[%emt 0:00:16]} Qxf5 {[%emt 0:00:03]} 24. Bh3 {[%emt 0:00:23]} Qe4 {[%emt 0:00:29]} 25. f5 $36 {[%emt 0:02:32][%mdl 2048] Black is under pressure.} (25. Qg3 {seems wilder.} Nc4 26. f5 Qh4 27. Qf3) 25... Qxf3 {[%emt 0:00:21]} 26. Rxf3 {[%emt 0:00:06]} Nf8 {[%emt 0:00:28]} (26... Nh4 $11 {remains equal.} 27. Rf4 Re1+ 28. Bf1 Rae8) 27. Bf4 {[%emt 0:00:28]} Re4 {[%emt 0:01:25] [#]} 28. Kf2 $1 {[%emt 0:01:36]} Rae8 {[%emt 0:00:42]} 29. Bf1 {[%emt 0:00:06] Threatens to win with Bd3.} g6 {[%emt 0:01:13]} 30. Bb5 {[%emt 0:01:34]} Nbd7 {[%emt 0:04:10]} (30... Rc8 $14) 31. Bd3 {[%emt 0:00:51]} (31. Bd6 $16) 31... gxf5 {[%emt 0:00:21][%cal Of8e6]} 32. Bg3 {[%emt 0:02:33] This bishop pair is nice.} Nb6 {[%emt 0:02:53]} 33. Rh1 {[%emt 0:03:52]} (33. Bxe4 $16 fxe4 34. Rf5) 33... Ng6 {[%emt 0:01:07]} 34. Rxf5 {[%emt 0:00:24]} (34. Bxe4 $16 fxe4 35. Rf6) 34... R4e6 {[%emt 0:00:16]} 35. Rf3 {[%emt 0:01:32]} Nd7 {[%emt 0:04:43]} (35... Nc4 $11) 36. Rb1 $16 {[%emt 0:02:11] White is more active.} Rb6 {[%emt 0:01:01] [#]} (36... Nb6 $16 {is a better defense.}) 37. Rxb6 {[%emt 0:00:42]} (37. Bb5 $1 $18 {[%cal Rb5d7]} Re7 38. Bc7) 37... Nxb6 $14 {[%emt 0:00:23]} 38. Rf6 {[%emt 0:01:27]} Kg7 {[%emt 0:00:29]} 39. Kg2 {[%emt 0:00:26]} Re3 {[%emt 0:01:38]} 40. Bxg6 {[%emt 0:00:11] The position is equal.} (40. Rf3 $5 {[%cal Rf3e3]} Re8 41. Kf2 $14) 40... fxg6 {[%emt 0:00:06]} 41. Be5 {[%emt 0:00:12]} Nc4 {[%emt 0:00:15]} 42. Re6+ {[%emt 0:02:24]} Kf7 {[%emt 0:00:23]} 43. Rf6+ {[%emt 0:00:12]} Kg7 {[%emt 0:00:06]} 44. Re6+ {[%emt 0:01:54] Weighted Error Value: White=0.24 (precise) /Black=0.27 (precise)} 1/2-1/2

[Event "Chessable English Open-ch 2022"]
[Site "Kenilwoth"]
[Date "2022.05.20"]
[Round "3.9"]
[White "Hepworth, Peter"]
[Black "Okhai, Shabir"]
[Result "0-1"]
[ECO "D32"]
[WhiteElo "1843"]
[BlackElo "2121"]
[Annotator "TA"]
[PlyCount "104"]
[EventDate "2022.05.18"]
[EventType "swiss"]
[EventCountry "ENG"]
[SourceTitle "playchess.com"]
[Source "ChessBase"]
[SourceQuality "1"]
[TimeControl "5400+30"]

{[%evp 24,104,15,8,41,30,36,31,18,27,56,0,17,0,32,-62,-76,-199,-136,-126,-52,-70,-59,-51,-59,-195,-160,-158,-104,-164,-57,-120,-120,-120,-120,-127,-123,-99,-15,-110,-135,-118,0,0,-10,-119,-110,-249,-241,-421,-427,-419,-422,-343,-211,-211,-203,-424,-241,-846,-833,-780,-757,-740,-617,-682,-682,-816,-793,-902,-897,-951,-805,-1439,-1385,-29987,-29988,-29986,-29985,-29985,-29986,-29982,-29983]} 1. d4 {[%emt 0:00:53]} Nf6 {[%emt 0:03:07]} 2. Nf3 {[%emt 0:00:22]} e6 {[%emt 0:00:10]} 3. c4 {[%emt 0:00:07]} c5 {[%emt 0:00:05]} 4. e3 {[%emt 0:03:20]} d5 {[%emt 0:00:23]} 5. cxd5 {[%emt 0:00:35]} exd5 {[%emt 0:00:29]} 6. Nc3 {[%emt 0:00:54]} a6 {[%emt 0:00:40]} 7. Be2 {[%emt 0:03:26]} cxd4 {[%emt 0:01:11]} 8. Nxd4 {[%emt 0:01:06]} Nc6 {[%emt 0:00:35]} 9. O-O {[%emt 0:00:25]} Bd6 {[%emt 0:00:41]} 10. Bf3 {[%emt 0:08:04]} O-O {[%emt 0:02:33]} 11. Nxc6 {[%emt 0:04:09]} bxc6 {[%emt 0:00:32]} 12. b3 {[%emt 0:00:16]} Re8 {[%emt 0:05:56]} 13. Bb2 {[%emt 0:00:16] [#]} Bc7 $146 {[%emt 0:07:17] D32: Tarrasch Defence: Sidelines and lines without g3.} ({Predecessor:} 13... Bb8 14. Rc1 Qd6 15. g3 Ba7 16. Re1 Bh3 17. Ne2 Ne4 18. Nf4 Bf5 19. Bg4 Bxg4 20. Qxg4 f6 21. Kg2 {½-½ (75) Almagro Llamas,P (2429)-Demuth,A (2535) Caleta 2016}) 14. Na4 {[%emt 0:04:35]} Ne4 {[%emt 0:05:27]} 15. Rc1 {[%emt 0:07:54]} Qd6 {[%emt 0:02:40][%csl Gc7][%cal Rd6h2] White is slightly better.} 16. g3 {[%emt 0:00:05]} Bh3 {[%emt 0:07:58]} 17. Re1 {[%emt 0:01:36]} (17. Qd4 $14 f6 18. Rfd1) 17... Qg6 {[%emt 0:06:58]} 18. Bh5 {[%emt 0:19:59]} Qf5 {[%emt 0:06:46]} 19. f4 {[%emt 0:15:05]} (19. Qf3 $14) 19... Ba5 $36 {[%emt 0:06:25][%mdl 2048] Keeping White busy.} 20. Nc3 {[%emt 0:11:09]} (20. g4 $17 Qe6 21. Qf3 Bxe1 22. Rxe1) 20... Nf6 {[%emt 0:03:31]} (20... Rad8 $19 21. a3 Nf6) 21. Bf3 $17 {[%emt 0:01:34]} Bg4 {[%emt 0:02:23]} (21... Rab8 $17 {Hoping for ...Bg4.} 22. Re2 Bb6) 22. Bxg4 $1 $15 {[%emt 0:04:14]} Nxg4 {[%emt 0:01:31]} 23. Qd4 {[%emt 0:00:09] Prevents Bb6.} Qh5 {[%emt 0:06:40]} 24. h4 {[%emt 0:02:08]} (24. Re2 $15) 24... Nf6 {[%emt 0:01:30]} 25. Kg2 {[%emt 0:03:10] Inhibits Qf3+.} Qg6 {[%emt 0:01:54]} ({Weaker is} 25... Qg4 26. Qd1 $17) (25... Re6 $142 $1 26. Rf1 Rae8) 26. Rf1 {[%emt 0:01:06]} (26. Qd1 $17) 26... Rab8 {[%emt 0:04:11]} ({Better is} 26... Bxc3 $19 27. Qxc3 Ne4) 27. Rf3 {[%emt 0:00:49] [#]} (27. f5 $15 Qg4 28. Qxg4 Nxg4 29. Nd1) 27... Bb6 $1 $17 {[%emt 0:01:27]} 28. f5 {[%emt 0:01:01]} Qh6 {[%emt 0:00:48]} 29. Qf4 {[%emt 0:01:42]} Qxf4 {[%emt 0:02:56]} 30. exf4 {[%emt 0:00:12][%cal Oh4h5]} Bd4 {[%emt 0:02:17]} (30... h5 $17 {White must now prevent ...Ng4.} 31. Na4 Re2+ 32. Kf1 Rh2 33. Nxb6 Rxb2 34. Rxc6 Rxa2 35. Rc8+ Rxc8 36. Nxc8 Rc2) 31. Rc2 {[%emt 0:00:43]} (31. Rd3 $11 c5 32. Rc2) 31... Ng4 {[%emt 0:01:28]} 32. Nd1 {[%emt 0:00:41]} Ba7 {[%emt 0:01:18] 0x0.00084316e4bddp-1022s more active pieces.} ({Black should play} 32... Bxb2 $17 33. Rxb2 h5) 33. h5 $1 $11 {[%emt 0:00:12]} Re1 {[%emt 0:01:07][%cal Be8e1,Be1h1,Bh1h5][%mdl 32]} 34. Rd2 {[%emt 0:01:37]} (34. Kh3 $1 $11 {was the only way to keep the balance.}) 34... Rbe8 $17 {[%emt 0:01:32] White is now going downhill.} 35. Kh3 {[%emt 0:00:46] [#]} (35. Rf1 $17) 35... Nh6 $1 $19 {[%emt 0:00:12]} 36. f6 $2 {[%emt 0:01:41]} (36. Nf2 {keeps fighting.} Nxf5 37. g4) 36... Rh1+ {[%emt 0:01:15]} 37. Kg2 {[%emt 0:01:00]} Ree1 {[%emt 0:01:03][%csl Ga7,Gh1][%cal Re1g1]} 38. Re3 {[%emt 0:00:46][%cal Oe3e7]} Bxe3 {[%emt 0:01:14]} 39. Nxe3 {[%emt 0:00:05]} Rxh5 {[%emt 0:01:44]} ({Worse is} 39... Rxe3 40. Kxh1 Nf5 41. Kg2 $15 (41. g4 Ng3+ 42. Kg2 Ne4 $17)) 40. Kf2 {[%emt 0:01:45]} (40. Kf3 {was necessary.} Rh3 41. fxg7) 40... Rb1 {[%emt 0:01:23]} (40... Reh1 $142 {aiming for ...R5h2+.} 41. Kf3 R5h2) 41. Rc2 $2 {[%emt 0:00:07]} (41. Kf3) 41... Rh2+ {[%emt 0:00:48]} 42. Ng2 {[%emt 0:00:03]} Ng4+ {[%emt 0:01:37]} 43. Kf3 {[%emt 0:00:08]} Nxf6 {[%emt 0:00:58]} 44. Bxf6 {[%emt 0:01:06]} gxf6 {[%emt 0:00:15][%mdl 4096] Endgame KRR-KRN} 45. Re2 {[%emt 0:00:07]} Kf8 {[%emt 0:01:57] ...Rf1+ is the strong threat.} 46. Rc2 {[%emt 0:01:25]} Rf1+ {[%emt 0:00:24]} 47. Kg4 {[%emt 0:00:10]} Rg1 {[%emt 0:00:14]} 48. Rxc6 {[%emt 0:00:10]} Rhxg2 {[%emt 0:00:11]} 49. Rxa6 {[%emt 0:00:23]} Rxg3+ {[%emt 0:00:23] Black mates.} 50. Kf5 {[%emt 0:00:05]} Rg6 {[%emt 0:00:17]} 51. Ra8+ {[%emt 0:01:11]} Kg7 {[%emt 0:00:09]} 52. Rd8 {[%emt 0:00:21]} Rh6 {[%emt 0:00:33] Weighted Error Value: White=0.94/Black=0.34} 0-1

[Event "Chessable English Open-ch 2022"]
[Site "Kenilwoth"]
[Date "2022.05.20"]
[Round "3.10"]
[White "Khoury, Theo"]
[Black "Shenbagakumar, Gautham"]
[Result "0-1"]
[ECO "B80"]
[WhiteElo "1927"]
[BlackElo "1700"]
[Annotator "TA"]
[PlyCount "46"]
[EventDate "2022.05.18"]
[EventType "swiss"]
[EventCountry "ENG"]
[SourceTitle "playchess.com"]
[Source "ChessBase"]
[SourceQuality "1"]
[TimeControl "5400+30"]

{[%evp 24,46,-26,0,145,-45,-60,-285,-223,-295,-285,-379,-294,-518,-519,-521,-414,-562,-553,-29985,-29986,-29990,-1238,-1231,-1184]} 1. e4 {[%emt 0:00:04]} c5 {[%emt 0:00:07]} 2. Nf3 {[%emt 0:00:07]} d6 {[%emt 0:00:07]} 3. d4 {[%emt 0:00:06]} cxd4 {[%emt 0:00:08]} 4. Nxd4 {[%emt 0:00:06]} Nf6 {[%emt 0:00:03]} 5. Nc3 {[%emt 0:00:04]} a6 {[%emt 0:00:05]} 6. f3 {[%emt 0:00:09]} e6 {[%emt 0:00:10]} 7. Be3 {[%emt 0:00:29]} b5 {[%emt 0:00:35][%cal Bb7b5,Bb5b4][%mdl 32]} 8. Qd2 {[%emt 0:00:20]} Bb7 {[%emt 0:01:07]} 9. O-O-O {[%emt 0:00:28]} Nbd7 {[%emt 0:00:28]} 10. g4 {[%emt 0:01:12]} h6 {[%emt 0:00:08]} 11. h4 {[%emt 0:02:54]} b4 {[%emt 0:00:58]} 12. Na4 {[%emt 0:00:59]} Qa5 {[%emt 0:25:03]} 13. b3 {[%emt 0:01:25]} d5 {[%emt 0:00:15] [#] B80: Sicilian Scheveningen: 6 g3 and 6 Be3, including English Attack.} (13... Nc5 $1 $11 {remains equal.}) 14. exd5 $2 {[%emt 0:12:52]} (14. e5 $1 $16 {[%cal Re5f6]}) 14... Nxd5 $15 {[%emt 0:00:03] [#] And now ...Nc5 would win.} 15. Kb2 $146 {[%emt 0:02:09]} (15. Bc4 $15) ({Predecessor:} 15. Re1 Nc5 16. Nxc5 Qa3+ 17. Kd1 Bxc5 18. Ke2 O-O-O 19. Nb5 Nf4+ 20. Bxf4 Rxd2+ 21. Kxd2 Rd8+ {0-1 (21) Papastavropoulos,A (2211)-Belov,V (2470) Ano Liosia 2000}) 15... Rd8 {[%emt 0:04:05][%cal Od5c3] aiming for ...Nc3! Black has a decisive advantage.} 16. Bd3 {[%emt 0:16:49][%cal Od4e6]} Nc5 {[%emt 0:12:35]} 17. Rhe1 {[%emt 0:17:32]} Be7 {[%emt 0:05:46]} 18. g5 $2 {[%emt 0:06:28]} (18. Nxc5 Qa3+ 19. Kb1 (19. Ka1 $2 Nc3 $19) 19... Nc3+ 20. Qxc3 bxc3 21. Na4) 18... Nxa4+ $19 {[%emt 0:08:07]} 19. bxa4 {[%emt 0:00:09]} Qxa4 {[%emt 0:00:06] Hoping for ...Nc3.} 20. Bc4 {[%emt 0:07:09]} Nc3 {[%emt 0:02:15] Threatens to win with ...Bd5.} ({Not} 20... Rc8 21. Bb3 Qa5 22. gxh6 $17) 21. Rc1 {[%emt 0:03:08]} Bd5 {[%emt 0:01:44]} 22. Qd3 {[%emt 0:03:13]} Rc8 {[%emt 0:02:00]} (22... Qa3+ $142 23. Ka1 {[#]} b3 $1 24. Bxb3 Bxb3 25. Qxa6 Qxa6 26. Kb2 Ba3+ 27. Kxb3 Rb8+ 28. Nb5 Qxb5+ 29. Kxc3 Bb4+ 30. Kb3 Bxe1+ 31. Ka3 Qb4#) 23. Bxd5 {[%emt 0:11:46]} exd5 {[%emt 0:00:24] White got outplayed after the opening.  Weighted Error Value: White=1.71/Black=0.88} 0-1

[Event "Chessable English Open-ch 2022"]
[Site "Kenilwoth"]
[Date "2022.05.20"]
[Round "3.11"]
[White "Parker, Keith"]
[Black "Ireland, David J"]
[Result "1/2-1/2"]
[ECO "D02"]
[WhiteElo "1815"]
[BlackElo "2000"]
[Annotator "TA"]
[PlyCount "106"]
[EventDate "2022.05.18"]
[EventType "swiss"]
[EventCountry "ENG"]
[SourceTitle "playchess.com"]
[Source "ChessBase"]
[SourceQuality "1"]
[TimeControl "5400+30"]

{[%evp 9,106,0,6,12,23,25,58,-19,-7,-21,-10,-14,-24,-24,-12,-11,-10,-9,-9,-8,-8,-8,-8,-12,-10,-17,0,0,3,0,0,-25,-30,-44,-44,-145,-153,-157,-157,-151,-83,-82,0,-137,-156,-183,-165,-235,-173,-161,-149,-183,-161,-230,-122,-285,-269,-350,-347,-341,-292,-272,-105,-100,-112,-110,-81,-70,-75,-68,-22,-143,-143,-139,-126,-213,-197,-214,-203,-218,-121,-109,-114,-311,-19,-19,0,0,10,14,21,8,8,8,8,8,29977,29974,29969]} 1. d4 {[%emt 0:00:16]} d5 {[%emt 0:09:31]} 2. Nf3 {[%emt 0:00:12]} c5 {[%emt 0:01:48]} 3. g3 {[%emt 0:00:15]} cxd4 {[%emt 0:00:42]} 4. Bg2 {[%emt 0:00:32]} Nf6 {[%emt 0:01:58]} 5. O-O {[%emt 0:01:23]} g6 {[%emt 0:01:06]} 6. Nxd4 {[%emt 0:01:32][%cal Oc2c4] D02: 1 d4 d5 2 Nf3 sidelines, including 2...Nf6 3 g3 and 2...Nf6 3 Bf4.} Bg7 {[%emt 0:01:24]} 7. c4 {[%emt 0:02:55] 7.Nb3 is the hot move.} e5 {[%emt 0:08:50] [#]} 8. Nc2 $146 {[%emt 0:08:52]} (8. Nb3) (8. Nf3 Nc6 9. Bg5 d4 10. e3 h6 11. Bxf6 Bxf6 12. exd4 exd4 13. Re1+ Kf8 14. Nbd2) (8. Nb3 $14) ({Predecessor:} 8. Nf3 Nc6 9. Bg5 d4 10. e3 h6 11. Bxf6 Bxf6 12. exd4 exd4 13. Re1+ Kf8 14. Nbd2 {½-½ (57) Shuvalov,E (2182)-Sarkar,J (2374) Chess.com INT 2020}) 8... d4 $11 {[%emt 0:12:28]} 9. Bg5 {[%emt 0:05:19]} Nc6 {[%emt 0:03:02]} 10. e3 {[%emt 0:06:48]} h6 {[%emt 0:06:34]} 11. Bxf6 {[%emt 0:00:39]} Qxf6 {[%emt 0:02:54]} 12. exd4 {[%emt 0:03:34]} exd4 {[%emt 0:01:24]} (12... Nxd4 13. Nxd4 exd4 14. Re1+ Kf8 15. Nd2) ({But not} 12... Nxd4 13. Nxd4 exd4 14. Re1+ Kf8 15. Nd2 $14) 13. Re1+ {[%emt 0:03:11]} Be6 {[%emt 0:06:00]} 14. Nb4 {[%emt 0:05:01]} O-O {[%emt 0:13:54]} 15. Nd5 {[%emt 0:05:15]} (15. Nxc6 bxc6 16. Nd2 Rad8) ({Much weaker is} 15. Nxc6 bxc6 16. Nd2 Rad8 $15) 15... Bxd5 {[%emt 0:02:44]} 16. cxd5 {[%emt 0:02:29]} Ne5 {[%emt 0:00:59]} 17. Nd2 {[%emt 0:05:34]} Rfe8 {[%emt 0:02:49]} 18. Qb3 {[%emt 0:05:25]} Qb6 {[%emt 0:03:43]} (18... Ng4 19. Nf3) 19. Qxb6 {[%emt 0:11:09]} axb6 {[%emt 0:00:03]} 20. Nb3 {[%emt 0:04:57]} Nc4 {[%emt 0:02:16]} 21. Rxe8+ {[%emt 0:02:49]} Rxe8 {[%emt 0:00:03]} 22. Rd1 {[%emt 0:01:01]} ({White should play} 22. Rc1 $1 $15 Nd6 23. Bf1) 22... Nxb2 $17 {[%emt 0:00:56]} 23. Rb1 {[%emt 0:04:09]} d3 $1 {[%emt 0:02:26]} 24. Bf3 {[%emt 0:00:02]} Nc4 {[%emt 0:01:47]} ({Better is} 24... Bc3 {aiming for ...Re1+.} 25. Kg2 Kg7) 25. Rd1 {[%emt 0:01:08] Prevents Re1+.} Nb2 {[%emt 0:02:20]} (25... Rd8 $17) 26. Rc1 {[%emt 0:02:19]} (26. Rb1 $1 $11 {was the only way to keep the balance.}) 26... Be5 {[%emt 0:01:49]} 27. Nd2 {[%emt 0:01:54]} Kf8 {[%emt 0:01:34]} 28. Bg2 {[%emt 0:02:16]} (28. h4 {keeps fighting.}) 28... Bd6 {[%emt 0:02:35]} 29. Rb1 {[%emt 0:03:01] [#]} Ba3 {[%emt 0:02:04]} 30. Bf3 {[%emt 0:01:56] Inhibits Re2.} b5 {[%emt 0:00:32]} 31. Kf1 {[%emt 0:03:07]} (31. Nb3 {is a better defense.}) 31... f5 {[%emt 0:00:27]} (31... Nc4 $19 32. Nb3 d2) 32. g4 $2 {[%emt 0:00:11]} (32. Nb3 $17 {was called for.}) 32... Nc4 $19 {[%emt 0:00:56]} 33. Rd1 {[%emt 0:01:25]} Bb4 {[%emt 0:01:18]} 34. Nb3 {[%emt 0:02:50]} Ne5 {[%emt 0:01:16]} 35. Kg2 {[%emt 0:01:37]} Rd8 $2 {[%emt 0:01:50]} (35... fxg4 $19 {is more deadly.} 36. Be4 Ra8 37. Bxd3 Rxa2 38. Bxb5 Rb2) 36. gxf5 $17 {[%emt 0:00:26]} gxf5 {[%emt 0:00:19]} 37. Nd4 {[%emt 0:01:03][%csl LRb5,LRf5]} Rd6 {[%emt 0:01:07]} 38. Nxf5 {[%emt 0:00:59]} Rg6+ {[%emt 0:00:52]} 39. Ng3 {[%emt 0:00:49]} d2 {[%emt 0:00:33]} (39... Rf6 $1 $15 {might be stronger.} 40. Be4 d2) 40. Be4 {[%emt 0:00:53]} (40. Be2 $11) 40... Ra6 {[%emt 0:00:30]} 41. Nf5 {[%emt 0:00:33]} Rxa2 {[%emt 0:00:41]} 42. Nd4 {[%emt 0:00:49]} (42. d6 $17 {might work better.}) 42... Ke7 $19 {[%emt 0:00:48]} 43. Nxb5 {[%emt 0:00:21]} Nc4 {[%emt 0:00:13] Against d6+. ...Nb2 is the strong threat.} 44. Bf3 {[%emt 0:00:38]} Nb2 {[%emt 0:00:13]} (44... Rc2 $19 {And now ...Rc1 would win.} 45. d6+ Bxd6) 45. Rb1 $17 {[%emt 0:00:09][%cal Od5d6] [#]} Nd3 $1 {[%emt 0:00:33]} 46. Kf1 $2 {[%emt 0:00:36]} (46. Be2 $17 Rc2 47. Bxd3 (47. d6+ $2 Kd8 $19)) 46... Bc5 $2 {[%emt 0:00:39]} ({Black should try} 46... Rc2 $19 {White must now prevent ...Rc1+.} 47. Bd1 Rc1 48. Rxb4 Nxb4) 47. Nc3 $11 {[%emt 0:00:44][%csl LRa2,LRb7]} d1=Q+ {[%emt 0:00:36]} 48. Nxd1 {[%emt 0:00:39]} Nxf2 {[%emt 0:00:23]} 49. Rxb7+ {[%emt 0:00:37]} Kd6 {[%emt 0:00:03]} 50. Rh7 {[%emt 0:00:31]} Nxd1 {[%emt 0:00:39]} 51. Rxh6+ {[%emt 0:00:08]} Ke5 {[%emt 0:00:37] Hoping for ...Ne3+.} 52. Bxd1 {[%emt 0:00:22]} Kxd5 $2 {[%emt 0:01:42][%mdl 8192]} (52... Rb2 $11) 53. Bb3+ Kd4 {[%emt 0:00:30][%mdl 32768] What a bad dream for Black.  Weighted Error Value: White=0.28 (precise) /Black=0.46. An unexpected result.} 1/2-1/2

[Event "Chessable English Open-ch 2022"]
[Site "Kenilwoth"]
[Date "2022.05.20"]
[Round "3.12"]
[White "Macklin, Paul"]
[Black "Shearsby, Jude"]
[Result "1/2-1/2"]
[ECO "B50"]
[WhiteElo "2350"]
[BlackElo "1849"]
[Annotator "TA"]
[PlyCount "57"]
[EventDate "2022.05.18"]
[EventType "swiss"]
[EventCountry "ENG"]
[SourceTitle "playchess.com"]
[Source "ChessBase"]
[SourceQuality "1"]
[TimeControl "5400+30"]

{[%evp 11,57,0,0,-8,-2,-14,0,-12,8,0,-2,-17,28,25,45,48,50,29,18,-8,75,76,74,54,72,35,30,21,20,0,36,33,73,33,62,56,97,86,118,112,113,76,112,98,129,50,37,36]} 1. e4 {[%emt 0:11:57]} c5 {[%emt 0:00:05]} 2. Nf3 {[%emt 0:00:45]} d6 {[%emt 0:00:06]} 3. c3 {[%emt 0:00:24]} Nf6 {[%emt 0:00:08]} 4. Be2 {[%emt 0:00:07]} g6 {[%emt 0:00:07]} 5. O-O {[%emt 0:00:19]} Bg7 {[%emt 0:00:06]} 6. d3 {[%emt 0:00:15]} O-O {[%emt 0:00:14]} 7. Be3 $1 {[%emt 0:00:21][%mdl 4] now scores much better than the old 7.Nbd2. B50: Sicilian: 2...d6, Miscellaneous.} e5 {[%emt 0:00:40] [#]} 8. Nbd2 $146 {[%emt 0:00:32]} ({Predecessor:} 8. h3 h6 9. a4 b6 10. Nbd2 Re8 11. Nc4 Nc6 12. Qd2 Kh7 13. Rad1 d5 14. exd5 Nxd5 {½-½ (45) Kim,P-Barg,A Winnipeg 1998}) 8... Re8 {[%emt 0:01:02]} 9. a3 {[%emt 0:00:48] The position is equal.} Nc6 {[%emt 0:02:09]} 10. Re1 {[%emt 0:11:51]} h6 {[%emt 0:11:34]} 11. h3 {[%emt 0:02:38]} g5 {[%emt 0:01:06]} 12. Nh2 {[%emt 0:13:29]} b6 {[%emt 0:06:33]} 13. Ng4 {[%emt 0:01:10]} Be6 {[%emt 0:08:54]} 14. Bf3 {[%emt 0:13:56]} Nxg4 {[%emt 0:03:47]} 15. hxg4 {[%emt 0:02:17] [#]} d5 {[%emt 0:01:54]} (15... Nd4 $1 $11 {keeps the balance.}) 16. exd5 $16 {[%emt 0:00:49]} Bxd5 {[%emt 0:00:11]} 17. Be4 {[%emt 0:00:50]} Qd7 {[%emt 0:04:47]} 18. Qf3 {[%emt 0:00:51]} Rad8 {[%emt 0:02:28]} 19. Rad1 {[%emt 0:05:55]} Ne7 {[%emt 0:03:03] [#] ...Be6 is the strong threat.} 20. Bxd5 {[%emt 0:03:36]} Qxd5 {[%emt 0:03:42]} 21. Ne4 {[%emt 0:00:22]} Ng6 {[%emt 0:01:15]} 22. g3 {[%emt 0:00:41]} Rf8 {[%emt 0:06:09]} 23. c4 {[%emt 0:01:13]} Qe6 {[%emt 0:01:48]} 24. b4 {[%emt 0:02:28] White is more active.} f5 {[%emt 0:05:35]} 25. gxf5 {[%emt 0:00:04]} Rxf5 {[%emt 0:00:10]} 26. Qg2 {[%emt 0:02:39]} cxb4 {[%emt 0:01:03]} 27. axb4 {[%emt 0:00:05]} Ne7 {[%emt 0:03:44]} 28. b5 {[%emt 0:00:50]} (28. Ra1 $16) 28... Rf7 {[%emt 0:03:33]} 29. Re2 {[%emt 0:03:00] Weighted Error Value: White=0.15 (very precise) /Black=0.23 (precise)} 1/2-1/2